Cogmind - Beta 17 @@@ ROGUE MODE // 2026.07.26 @ 15:36:00 Player: aperiodic Result: Self-destructed Performance ------------- Evolutions (0) 0 Regions Visited (4) 800 Robots Destroyed (27) 135 Value Destroyed (786) 786 Prototype IDs (75) 1500 Alien Tech Used (0) 0 Bonus (300) 300 TOTAL SCORE: 3521 Bonus ------- Registered with UFD 300 Cogmind --------- Core Integrity 27/250 Matter 265/300 Energy 1100/1100 System Corruption 0% Temperature Cool (37) Movement Core (400) Ox7 Location -7/Scraptown Parts ------- > --- POWER (1) -------- Hybrid Antimatter Reactor (fused) > --- PROPULSION (2) --- Flexi-carbon Leg (fused) > --- UTILITY (2) ------ Improved Shock Absorption System (fused) Self-contained Transmogrifier > --- WEAPON (2) ------- Improved Plasma Cutter (fused) Plasma Flamer (fused) > --- INVENTORY (5) ---- Makeshift Hacking Suite Rainbow Chip Subdweller Shrapnel Launcher Dirty Datajack (20) Peak State ------------ > --- POWER ------------ Light Neutrino Core > --- PROPULSION ------- Heavy Treads > --- UTILITY ---------- Improved Shock Absorption System Self-contained Transmogrifier > --- WEAPON ----------- Centrium Greatsword > --- INVENTORY -------- Makeshift Hacking Suite Rainbow Chip Subdweller Shrapnel Launcher Dirty Datajack [Rating: 52] Favorites ----------- Power Cold Fusion Reactor Engine Subdweller Power Source Power Core Reinforced Fission Core Reactor Cold Fusion Reactor Propulsion Light Treads Treads Light Treads Leg Multireflex Exoskeleton Wheel Wheel Hover Unit Improved Antigrav System Flight Unit Makeshift Flight Unit Utility Self-contained Transmogrifier Device Self-contained Transmogrifier Storage Small Storage Unit Processor Experimental Terrain Scan Processor Protection Scrap Shield Weapon Subdweller Beam Cannon Energy Gun Arc Thrower Energy Cannon Subdweller Beam Cannon Ballistic Gun Flak Gun Ballistic Cannon Bore Cannon Launcher Precision Grenade Launcher Special Weapon Multitool Impact Weapon Heavy Mace Slashing Weapon Carbide Saw Piercing Weapon Plasma Lance Build | -11 -10 -10 -7 -7 ------- Run | Yrd Mat Sub Rec Scr Slots Evolved . | . . . . . Power . | . . . . . Propulsion . | . . . . . Utility . | . . . . . Weapon . | . . . . . Parts Attached 43 | 7 . 28 3 5 Power 7 | 1 . 4 1 1 Engine 7 | 1 . 4 1 1 Core . | . . . . . Reactor . | . . . . . Propulsion 8 | 2 . 6 . . Treads 3 | . . 3 . . Leg . | . . . . . Wheel 5 | 2 . 3 . . Hover . | . . . . . Flight . | . . . . . Utility 6 | 2 . 2 . 2 Device 2 | 1 . . . 1 Storage 1 | 1 . . . . Processor . | . . . . . Hackware . | . . . . . Protection 3 | . . 2 . 1 Artifact . | . . . . . Weapon 22 | 2 . 16 2 2 Energy Gun 8 | 1 . 5 1 1 Energy Cannon 7 | . . 6 . 1 Ballistic Gun 3 | 1 . 2 . . Ballistic Cannon . | . . . . . Launcher 2 | . . 2 . . Special Weapon 2 | . . 1 1 . Impact Weapon . | . . . . . Slashing Weapon . | . . . . . Piercing Weapon . | . . . . . Special Melee Weapon . | . . . . . Unidentified Prototypes 1 | . . . . 1 Parts Lost 9 | . . 8 . 1 Power 2 | . . 2 . . Propulsion 4 | . . 3 . 1 Utility 1 | . . 1 . . Weapon 2 | . . 2 . . Highest Loss Streak 2 | . . 2 . 1 To Critical Strikes . | . . . . . Average Backups 4 | 3 8 5 5 4 Power . | . 1 . . . Propulsion . | 2 4 1 . . Utility 1 | . . . 2 2 Weapon 1 | . 2 1 . 1 Tool/Special . | . . . . . Unused Backups 5 | . 1 1 . 3 Power . | . . . . . Propulsion 1 | . 1 . . . Utility 2 | . . . . 2 Weapon . | . . . . . Tool/Special 2 | . . 1 . 1 Average Slot Usage (%) 94 | . 100 88 85 95 Engine 4 | . 14 13 14 2 Core 6 | . . . . 7 Reactor 3 | . . . . 3 Treads 10 | . . 13 14 9 Leg 3 | . . . . 3 Wheel 3 | . 28 14 14 1 Hover 1 | . . . . 1 Flight 7 | . . . . 9 Device 18 | . 14 3 . 21 Processor 1 | . . . . 2 Protection 4 | . . 9 14 3 Energy Gun 4 | . 14 6 10 4 Energy Cannon 2 | . . 11 . 1 Ballistic Gun 4 | . 14 6 3 4 Ballistic Cannon 2 | . . . . 3 Launcher 10 | . . 2 5 11 Special Weapon 1 | . . . 8 1 Piercing Weapon 1 | . . . . 1 Peak Build Rating 52 | 7 7 19 19 52 Average Rating 35 | 5 7 12 18 40 On Entrance 10 | . 7 7 18 19 Avg Prop Armor Cover (%) 9 | . . 1 4 10 Naked Turns . | . . . . . Heaviest Build 54 | 11 11 39 40 54 Greatest Support 70 | 26 26 40 10 70 Greatest Overweight (x) 16 | . . 3 3 16 Average Overweight (x) 1 | . . . 3 1 Largest Inventory Capacity 8 | 8 8 8 5 5 Average Capacity 5 | 7 8 5 5 5 Most Carried 8 | 8 8 8 5 5 Average Carried 4 | 3 8 5 5 4 Final Capacity 8 | 8 8 5 5 5 Final Carried 8 | 8 8 5 5 4 Transmogrified Parts 288 | . . . . 288 Integrity Recovered 510 | . . . . 510 Class Distribution -------------------- 84% | Mutant 9% | Subdweller-Mutant 5% | Scavenger-Mutant Dominant Class ---------------- Mutant | -10/Materials Subdweller-Mutant | -10/Subcaves Scavenger-Mutant | -7/Recycling Mutant | -7/Scraptown Resources | -11 -10 -10 -7 -7 ----------- Run | Yrd Mat Sub Rec Scr Matter Collected 987 | 277 . 624 26 60 Remotely . | . . . . . Salvage Created 1111 | 117 . 931 63 . Parts 84 | 15 . 65 4 . Haulers Intercepted . | . . . . . Recyclers Shooed . | . . . . . Parts Field Recycled . | . . . . . Retrieved Matter . | . . . . . Parts Self-Destructed 21 | . . 21 . . Prevented . | . . . . . Parts Restored . | . . . . . Kills | -11 -10 -10 -7 -7 ------- Run | Yrd Mat Sub Rec Scr Combat Hostiles Destroyed 23 | . . 22 1 . Guns 10 | . . 9 1 . Cannons 11 | . . 11 . . AOE 2 | . . 2 . . Classes Destroyed 6 | 2 . 4 . . Tunneler 3 | 3 . . . . Recycler 1 | 1 . . . . Swarmer 6 | . . 6 . . Sentry 2 | . . 1 1 . Artisan 2 | . . 2 . . Subdweller 15 | . . 15 . . Best Kill Streak 4 | 4 . 4 1 . Combat Bots Only 4 | . . 4 1 . Max Kills in Single Turn 1 | 1 . 1 1 . Gunslinging . | . . . . . Exploded 1 | . . 1 . . Melee . | . . . . . Uniques/NPCs Destroyed . | . . . . . Combat | -11 -10 -10 -7 -7 -------- Run | Yrd Mat Sub Rec Scr Hostile Shots Fired 149 | . . 106 27 16 Missed 37 | . . 24 9 4 Hits 112 | . . 82 18 12 Projectile 112 | . . 82 18 12 Critical Strikes 3 | . . 1 . 2 Damage Taken 1976 | . . 1588 138 250 Core 223 | . . 168 11 44 Absorbed by Shields . | . . . . . Core Remaining (%) 100 | 100 . . . . Volleys Fired 173 | 14 . 155 4 . Largest 2 | 2 . 2 1 . Hottest 160 | 60 . 160 28 . Shots Fired 217 | 21 . 192 4 . Gun 124 | 21 . 99 4 . Cannon 74 | . . 74 . . Launcher 7 | . . 7 . . Special 12 | . . 12 . . Kinetic 63 | 7 . 52 4 . Thermal 147 | 14 . 133 . . Explosive 7 | . . 7 . . Electromagnetic . | . . . . . Robot Hit Streak 52 | 6 . 48 52 . Robot Miss Streak 5 | 3 . 5 . . Penetration Max . | . . . . . Secondary Targets 2 | . . 2 . . Max Gunslinging Chain 1 | . . 1 . . Shots Hit Robots 119 | 12 . 103 4 . Core Hits 46 | 6 . 37 3 . Critical Kills . | . . . . . Critical Parts Destroyed 1 | . . 1 . . Critical Strikes 1 | . . 1 . . Destroy 1 | . . 1 . . Melee Attacks . | . . . . . Impact . | . . . . . Slashing . | . . . . . Piercing . | . . . . . Sneak Attacks . | . . . . . Combat Hostiles . | . . . . . Follow-up Attacks . | . . . . . Damage Inflicted 2255 | 122 . 2060 73 . Guns 732 | 122 . 537 73 . Cannons 1232 | . . 1232 . . Explosions 291 | . . 291 . . Melee . | . . . . . Ramming . | . . . . . Kinetic 365 | 15 . 277 73 . Thermal 1599 | 107 . 1492 . . Explosive 291 | . . 291 . . Electromagnetic . | . . . . . Impact . | . . . . . Slashing . | . . . . . Piercing . | . . . . . Highest Corruption . | . . . . . Average Corruption . | . . . . . Corruption Purged . | . . . . . Corruption Blocked . | . . . . . Overload Shots . | . . . . . Overflow Damage . | . . . . . Projectiles . | . . . . . Explosions . | . . . . . Melee . | . . . . . Knockbacks . | . . . . . Impact . | . . . . . Kinetic . | . . . . . Secondary . | . . . . . Self-Inflicted Damage 189 | . . 189 . . Shots 7 | . . 7 . . Rammed . | . . . . . Targets Rammed . | . . . . . Kicked . | . . . . . Crushed . | . . . . . Highest Temperature 108 | 40 . 108 54 17 Average Temperature 27 | 18 . 30 26 10 Received Heat Transfer 554 | . . 330 42 182 Siege Activations . | . . . . . Martial Activations 1 | . . . . 1 Total Turns 1894 | . . . . 1894 Longest Duration 1894 | . . . . 1894 Shielding Activations . | . . . . . Robots Disrupted . | . . . . . Combat Hostiles . | . . . . . Robots Corrupted . | . . . . . Combat Hostiles . | . . . . . Parts Fried . | . . . . . Impact Corruptions . | . . . . . Robots Melted . | . . . . . Combat Hostiles . | . . . . . Parts Melted 6 | . . 6 . . Heat Transferred 2490 | 250 . 2240 . . Parts Sabotaged . | . . . . . Parts Stolen . | . . . . . Parts Stripped . | . . . . . Power Chain Reactions . | . . . . . Alert | -11 -10 -10 -7 -7 ------- Run | Yrd Mat Sub Rec Scr Maximum Alert Level . | . . . . . Low Security (%) 100 | 100 100 . 100 . Level 1 . | . . . . . Level 2 . | . . . . . Level 3 . | . . . . . Level 4 . | . . . . . Level 5 . | . . . . . High Security . | . . . . . Max Security . | . . . . . Peak Influence 20 | 15 . . 20 . Initial . | . . . . . Average 1 | 3 . . 1 . Influence Increases 240 | 20 . 200 20 . Destroy 0b10 Robot/C 160 | . . 140 20 . Destroy 0b10 Robot/NC 20 | 20 . . . . Lose Combat Pursuer 60 | . . 60 . . Influence Decreases 240 | 20 . 200 20 . Time Decay 240 | 20 . 200 20 . Squads Dispatched 1 | . 1 . . . Investigation 1 | . 1 . . . Extermination . | . . . . . Reinforcement . | . . . . . Assault . | . . . . . Garrison . | . . . . . Intercept . | . . . . . Searches Triggered . | . . . . . Construction Impeded . | . . . . . Haulers Reinforced . | . . . . . Active Scanning Responses . | . . . . . Cargo Convoy Interrupts . | . . . . . Stealth | -11 -10 -10 -7 -7 --------- Run | Yrd Mat Sub Rec Scr Distress Signals . | . . . . . Communications Jammed . | . . . . . Distress Signals . | . . . . . Times Spotted 34 | . 1 28 1 4 Peak Tracking Total 6 | . 1 6 1 6 Tactical Retreats 3 | . . 3 . . Traps | -11 -10 -10 -7 -7 ------- Run | Yrd Mat Sub Rec Scr Traps Triggered 2 | . 1 1 . . Indirectly . | . . . . . Trap Hack Attempts . | . . . . . Triggered . | . . . . . Disarmed . | . . . . . Reprogrammed . | . . . . . Reused . | . . . . . Traps Extracted . | . . . . . Installed . | . . . . . Triggered . | . . . . . Machines | -11 -10 -10 -7 -7 ---------- Run | Yrd Mat Sub Rec Scr Machines Disabled 2 | . . 1 . 1 Max in Single Turn 1 | . . 1 . 1 Machines Repaired . | . . . . . Machines Dismantled 1 | . . . . 1 Machines Sabotaged . | . . . . . Overloaded Fab Kills . | . . . . . Hacking | -11 -10 -10 -7 -7 --------- Run | Yrd Mat Sub Rec Scr Machines Accessed 8 | . . 4 3 1 Terminals 3 | . . . 3 . Fabricators . | . . . . . Repair Stations . | . . . . . Recycling Units . | . . . . . Scanalyzers . | . . . . . Garrison Access . | . . . . . Total Hacks 12 | . . 7 4 1 Successful 8 | . . 7 . 1 Failed 4 | . . . 4 . Catastrophic 1 | . . . 1 . Database Lockouts . | . . . . . Manual 3 | . . . 3 . Terminals 4 | . . . 4 . Fabricators . | . . . . . Repair Stations . | . . . . . Recycling Units . | . . . . . Scanalyzers . | . . . . . Garrison Access . | . . . . . Terminal Hacks 8 | . . 7 . 1 Record 4 | . . 4 . . Open Door 1 | . . 1 . . Proto ID Catalog 2 | . . 1 . 1 Release Object 1 | . . 1 . . Fabricator Hacks . | . . . . . Repair Station Hacks . | . . . . . Recycling Unit Hacks . | . . . . . Scanalyzer . | . . . . . Garrison Access Hacks . | . . . . . Unauthorized Hacks . | . . . . . Terminals . | . . . . . Fabricators . | . . . . . Repair Stations . | . . . . . Recycling Units . | . . . . . Scanalyzers . | . . . . . Garrison Access . | . . . . . Data Cores Recovered . | . . . . . Used . | . . . . . Hacking Detections 1 | . . . 1 . Full Trace Events . | . . . . . Feedback Events . | . . . . . Feedback Blocked . | . . . . . Robot Schematics Acquired . | . . . . . Robots Built . | . . . . . Authchips . | . . . . . Time . | . . . . . Total Robot Build Rating . | . . . . . Part Schematics Acquired . | . . . . . Parts Built . | . . . . . Authchips . | . . . . . Time . | . . . . . Total Part Build Rating . | . . . . . Part Studies Acquired . | . . . . . Parts Repaired . | . . . . . Time . | . . . . . Parts Recycled . | . . . . . Recycled Matter . | . . . . . Retrieved Matter . | . . . . . Retrieved Components . | . . . . . Parts Scanalyzed . | . . . . . Part Schematics Acquired . | . . . . . Parts Damaged . | . . . . . Bothacking | -11 -10 -10 -7 -7 ------------ Run | Yrd Mat Sub Rec Scr Used RIF Installer . | . . . . . Robots Hacked . | . . . . . Non-combat . | . . . . . Combat . | . . . . . Robot Hacks Applied . | . . . . . Relay Couplers Released . | . . . . . Fabnet Peak Effective % . | . . . . . Robots Rewired . | . . . . . Allies Hacked . | . . . . . Hacks Repelled . | . . . . . Allies | -11 -10 -10 -7 -7 -------- Run | Yrd Mat Sub Rec Scr Total Allies . | . . . . . Largest Group . | . . . . . Highest-Rated Group . | . . . . . Highest-Rated Ally . | . . . . . Total Orders . | . . . . . Ally Attacks . | . . . . . Total Damage . | . . . . . Kills . | . . . . . Allies Corrupted . | . . . . . Allies Melted . | . . . . . Intel | -11 -10 -10 -7 -7 ------- Run | Yrd Mat Sub Rec Scr Active Infowar (turns) 7397 | 30 110 1468 . 5789 Optics 1271 | . . . . 1271 Sensors 306 | . . . . 306 Terrain 1669 | . . . . 1669 Seismic 1608 | 30 110 1468 . . Decoding 561 | . . . . 561 Cloaking 260 | . . . . 260 Spoofing 15 | . . . . 15 Jamming 1678 | . . . . 1678 ECM 29 | . . . . 29 Robot Analysis Total . | . . . . . Derelict Logs Recovered 4 | . . 2 . 2 Drone Launches . | . . . . . Drone Recoveries . | . . . . . Exploration | -11 -10 -10 -7 -7 ------------- Run | Yrd Mat Sub Rec Scr Turns Passed 34940 | 116 110 5612 393 28709 Spaces Moved 18333 | 69 119 3045 300 14800 Core 1916 | 3 . . . 1913 Treads 5267 | . . 1635 . 3632 Legs 1512 | . . . . 1512 Wheels 3264 | 66 119 1410 300 1369 Hover 192 | . . . . 192 Flight 6182 | . . . . 6182 Fastest Speed 40 | 50 90 80 125 40 Average Speed 183 | 87 90 143 125 193 Slowest Speed 850 | 90 90 240 125 850 Overloaded Moves 862 | . . . . 862 Propulsion Burnouts . | . . . . . Robots Hopped . | . . . . . Potential Cave-ins . | . . . . . Cave-ins Triggered . | . . . . . Exploration Rate (%) 55 | 4 27 98 56 92 Regions Visited 4 Branch Regions 3 Pre-discovered Areas 2 | . . 1 . 1 Known Exits Taken . | . . . . . Unknown Exits Taken 4 | 1 1 1 1 . Scrap Searched 23 | . . 14 . 9 Spaces Dug 4 | . . 4 . . Terrain Destroyed 36 | . . 36 . . Melee . | . . . . . Projectile 5 | . . 5 . . AOE 31 | . . 31 . . Terrain Rammed . | . . . . . Walls Destroyed . | . . . . . Machines Disabled . | . . . . . Actions | -11 -10 -10 -7 -7 --------- Run | Yrd Mat Sub Rec Scr Total 19420 | 101 122 4075 311 14811 Wait 766 | 3 2 761 . . Move 18329 | 68 118 3044 299 14800 Hop . | . . . . . Pick Up 30 | 9 1 20 . . Fast Attach 23 | 6 . 12 1 4 Attach 6 | 1 . 4 . 1 Detach . | . . . . . Swap 34 | . . 32 2 . Drop 37 | . 1 31 2 3 Fire 173 | 14 . 155 4 . Melee . | . . . . . Ram . | . . . . . Kick . | . . . . . Crush . | . . . . . Escape Stasis . | . . . . . Rewire . | . . . . . Trap . | . . . . . Miscellaneous 22 | . . 16 3 3 Route ------- -11/Scrapyard -10/Materials (discovered 2 exits: [*Min] / *Sub) -10/Subcaves (discovered 3 exits: [*Mat x2] / *Rec) -7/Recycling -7/Scraptown (discovered 2 exits: [*Fac x2]) History --------- Turn | Location | Event 15 | -11/Scrapyard | Discovered new exit (range 15) 117 | -11/Scrapyard | Entered Materials 142 | -10/Materials | Discovered new exit (range 9) 216 | -10/Materials | Discovered new exit (range 11) 227 | -10/Materials | Entered Subcaves 234 | -10/Subcaves | Discovered new exit (range 6) 299 | -10/Subcaves | Learned location of Zion (-7) 299 | -10/Subcaves | Met a Zionite searching for "candidates" 300 | -10/Subcaves | Build established: Mutant 1508 | -10/Subcaves | Ambushed by Subdwellers from Twisted Machinery 2057 | -10/Subcaves | A swath of the cavern ceiling suddenly collapsed 2093 | -10/Subcaves | Visited Clippyterm 2095 | -10/Subcaves | Learned Factory fabricator intel 2295 | -10/Subcaves | Visited 4L-MR0's lab 2447 | -10/Subcaves | Build established: Subdweller-Mutant 2565 | -10/Subcaves | Disturbed a concealed Subdweller 2575 | -10/Subcaves | Disturbed a concealed Subdweller 2577 | -10/Subcaves | Disturbed a concealed Subdweller 2638 | -10/Subcaves | Disturbed a concealed Subdweller 3241 | -10/Subcaves | Core integrity fell below 50% 3245 | -10/Subcaves | Ambushed by Subdweller buried in earth 4177 | -10/Subcaves | A swath of the cavern ceiling suddenly collapsed 4202 | -10/Subcaves | Shifting Twisted Machinery released Sub. Beam Cannon 4204 | -10/Subcaves | Shifting Twisted Machinery released Scrap Shield 4212 | -10/Subcaves | Learned Materials terminal intel 4213 | -10/Subcaves | Discovered new exit (range 5) 4382 | -10/Subcaves | Learned Materials garrison access intel 4386 | -10/Subcaves | Shifting Twisted Machinery released Sub. Machine Gun 4503 | -10/Subcaves | Shifting Twisted Machinery released Mak. Light Armor Plating 4530 | -10/Subcaves | Shifting Twisted Machinery released Flamer 4545 | -10/Subcaves | Shifting Twisted Machinery released Mak. Power Source 5038 | -10/Subcaves | Discovered new exit (range 15) 5473 | -10/Subcaves | Found Rainbow Chip 5489 | -10/Subcaves | Found Prototype Device 5839 | -10/Subcaves | Entered Recycling 6198 | -7/Recycling | Scanned before Scraplab entrance 6217 | -7/Recycling | Entered Scraplab 6227 | -7/Recycling | Discovered new exit (range 4) 6232 | -7/Recycling | Entered Scraptown 6302 | -7/Scraptown | Build established: Scavenger-Mutant 6454 | -7/Scraptown | Discovered new exit (range 3) 6536 | -7/Scraptown | Scanned Subdweller tech in exchange for log data 6539 | -7/Scraptown | Learned location of Armory (-4) 6540 | -7/Scraptown | Learned Factory stockpile data 6576 | -7/Scraptown | Visited Comm Corps 6599 | -7/Scraptown | Visited Bundlers 6837 | -7/Scraptown | Visited Supply Room 6857 | -7/Scraptown | Visited Red Mages 6911 | -7/Scraptown | Visited Spacefarers 6936 | -7/Scraptown | Visited TADAMA 6966 | -7/Scraptown | Visited Symbiants 7164 | -7/Scraptown | Visited UFD Registry 7174 | -7/Scraptown | Registered with UFD as "Bulletbot" 7230 | -7/Scraptown | Visited Curators Association 7310 | -7/Scraptown | Visited Science Testing Area 7334 | -7/Scraptown | Visited Botcube Research 7366 | -7/Scraptown | Visited Infowarlord's Domain 7391 | -7/Scraptown | Visited Derelict Rescue Squad 7435 | -7/Scraptown | Delivered Scrap Shield to a Scientist 7519 | -7/Scraptown | Visited DA-N13 Charitable Foundation 7527 | -7/Scraptown | Found DCF Scrap (27 items) 7545 | -7/Scraptown | Visited Science Guys 7576 | -7/Scraptown | Visited Scrapoid Pod Storage 7692 | -7/Scraptown | Discovered new exit (range 5) 7828 | -7/Scraptown | Identified Sfc. Transmogrifier 8153 | -7/Scraptown | Build established: Mutant 34923 | -7/Scraptown | Attacked by Scraptown defenders 34941 | -7/Scraptown | Self-destructed Last Messages --------------- Absorption System into 0b10 Decoder Chip [Skirmisher]. 34497_ Sfc. Transmogrifier converts 0b10 Decoder Chip [Skirmisher] into Imp. Shock Absorption System. 34511_ Sfc. Transmogrifier converts Fusion Reactor into Hyb. Antimatter Reactor. 34766_ Sfc. Transmogrifier converts Variable Charge Gun into Imp. Plasma Cutter. 34874_ Sfc. Transmogrifier converts Field Propulsion Drive into Flexi-carbon Leg. 34919_ Dismantling Supplies with Imp. Plasma Cutter. 34923_ Supplies dismantled. 34923_ ANNOUNCEMENT: Intruder alert! Defend Scraptown! 34926_ Critical hit (Burn: +50). 34937_ Machine disabled. 34939_ Imp. Antigrav System destroyed. 34941_ Critical hit (Burn: +50). Map ----- +----------------------------------------------------+ | ?????????????????????????????????????????????????? | | ?????????????????????????????????????????????????? | | ?????????????????????????????#####???????????????? | | ?????????????????????????????#"""#???????????????? | | #################???####?????#" "#???????????????? | | "##"""##""|##"""#??## ##????# < #???????????????? | | ##"" ##"" ##!!"#### ###### ##??????????????? | | #??????????????? | | #??????????????? | | #################### ###########??????????????? | | ??????????#?#??????## ##?????????#??????????????? | | ?#??????#???????????# #??#??????????#???????????? | | ????????????????#??## #?????????????????????????? | | ???#??#####??????#?## #??"??"??"????????????????? | | ### ?# ############## ##??? ? ?????????????????? | | # # # ### ## #??? ??? ?#???????????????? | | # # ## ## #?""???"""??####??????????? | | # ## ## ####"#######???#??????????? | | # # ## #"" """"#???#??????????? | | # # ## #" """##????#????????? | | ## ## # &""#?#?#??????????? | | ?# ## #" """#?#?#??????????? | | """"""??"# ## #"j #????#?????????? | | ?## ##??####### ##### ## #########????#?????????? | | ### ########### ##### ## ###??###?#??#???#??????? | | """ """"""""""" """"" ""@"#?" ?""?###?????????? | | #?? ? ?"??#?????????? | | E "##? """ ""????????????? | | "#?" ?#???????????? | | p j "##" " """##??????????? | | " "#???#???????? | | """"""""""""""""""""" "##" "#??##???????? | | """"""""""""""""""""" "##" """ "##???#??????? | | # ################"" "##" ??#???#???????? | | ???####?###??#"" "########??????????????? | | ?X"???###?###"" "###????#??##??????????? | | " "" ?#???####?##"" "###########?##????????? | | "" ??#?###??###"" "## !!!!! #???##??????? | | " ######### #"" "## #??#????????? | | "" #?##????????? | | "" "## ###?????????? | | " ######### #"" "## !!!!! ##???#??????? | | "" ""???#######"" "###########?##????????? | | " "" ?###??###?#"" "#?#?##???##?##?#??????? | | ??###?######"" "###????##?##??????????? | | ? ?##??#######"" "##############????????? | | # ################"" "## """"""""#????????? | | """"""""""""""""""""" "## " " " "#????????? | | """"""""""""""""""""" "#?#??????? | | "## &"#?#??????? | +----------------------------------------------------+ Best States ------------- Heat Dissipation 25 Energy Generation 25 Energy Capacity 1100 Matter Stores 300 Matter Capacity 300 Sight Range 23 Robot Scan Range 16 Terrain Scan Range 18 Terrain Scan Density 1010 ECM Strength 2 Jamming Range 14 Cloak Strength 3 Additional Mass Support 12 Armor Coverage 800 Resistance: KI 30 Resistance: TH 30 Resistance: EX 50 Propulsion Shielding 15 Utility Shielding 90 Weapon Shielding 90 Point Defense Rating 80 Weapon Cycling 20 Evasion (%) 62 Recoil Reduction 6 Energy Filtering 30 Item Schematics ----------------- None Robot Schematics ------------------ None Fabricated ------------ Nothing Repaired ---------- Nothing Studied --------- None Alien Tech Used ----------------- None Achievements -------------- None Challenges ------------ None Game ------ Seed LaserSigixShovel Manual? 0 Play Time 01:16:21 Cumulative 773.2 hours Start 2026.07.26 @ 14:08:56 End 2026.07.26 @ 15:36:00 Sessions 1 Manual Loads 0 Difficulty Rogue Special Mode None Game No. 271 Rogue 267 Adventurer 4 Explorer 0 Win Type - Total 21 Types 9/2/6/0/0/0/2/2/0/0 Lore% 88 Gallery% 76 Achievement% 60 Wizard Run 0 Options --------- Layout 1 ASCII 0 Keyboard 0 Movement Arrows Keybinds 0 Fullscreen 1 Font 40/SmallcapsGlow Map View 50x40 Zoom Use 0% Tactical HUD 1 Map Filters NONE Filters NONE Steam 1 RUN: 5ae4956b-257a-4b40-892b-1a79a0124ebe